bitfinex/quotes_ETHUSD_20241207
["timestamp","ask_amount","ask_price","bid_price","bid_amount"]
[1733576447658,0.86417541,4004.9,4004.8,1.7479]
[1733576448160,0.7735,4005.0,4004.8,1.7479]
[1733576448355,1.04525081,4005.1,4004.8,1.7479]
[1733576448594,0.86404133,4005.0,4004.8,1.7479]
[1733576448803,1.04525081,4005.1,4004.8,1.7479]
[1733576448965,0.06681774,4004.9,4004.8,1.7479]
[1733576449592,1.04525081,4005.1,4004.8,1.7479]
[1733576449903,0.93071946,4005.0,4004.8,1.7479]
[1733576450099,0.06681774,4005.0,4004.8,1.7479]
[1733576450326,0.06681774,4005.0,4004.5,0.7532]
[1733576451168,1.2959295,4005.0,4004.7,1.74794]
[1733576451359,0.86397717,4004.9,4004.7,1.74794]
[1733576451603,0.06730391,4004.9,4004.7,1.74794]
[1733576451796,0.86394207,4004.8,4004.7,1.74794]
[1733576451958,2.22713634,4004.8,4004.5,1.07767156]
[1733576452162,0.06730391,4004.8,4004.5,3.18356072]
[1733576452395,1.04525081,4005.0,4004.5,3.18356072]
[1733576452600,0.93115948,4004.9,4004.6,1.74797]
[1733576452766,0.06725668,4004.9,4004.6,1.74797]
[1733576453101,0.86391273,4004.8,4004.6,1.74797]
[1733576453397,1.04525081,4004.9,4004.6,2.06632407]
[1733576453601,2.22725622,4004.8,4004.6,2.06632407]
[1733576453772,0.06725668,4004.8,4004.6,2.06632407]
[1733576454303,0.86399761,4004.7,4004.6,2.06632407]
[1733576454459,0.93125429,4004.7,4004.6,2.06632407]
[1733576454663,0.93125429,4004.7,4004.5,0.35789916]
[1733576454664,4.03305887,4004.7,4004.5,0.35789916]
[1733576454901,3.20518886,4004.6,4004.1,1.74816]
[1733576455102,2.16015138,4004.5,4004.1,1.74816]
[1733576455446,0.93125429,4004.4,4004.1,1.74816]
[1733576455717,0.86430775,4004.3,4004.1,1.74816]
[1733576456013,1.04503748,4004.5,4004.1,1.74816]
[1733576456214,2.22812578,4004.4,4004.0,1.07767156]
[1733576456421,0.86434764,4004.3,4004.0,1.07767156]
[1733576456610,1.04503748,4004.4,4004.0,3.20865102]
[1733576456775,0.93168577,4004.3,4004.0,3.20865102]
[1733576456974,0.06725668,4004.3,4004.0,3.20865102]
[1733576458092,1.04503748,4004.5,4004.1,0.999459]
[1733576458290,0.06642001,4004.2,4004.1,0.999459]
[1733576458512,1.04503748,4004.5,4004.1,0.999459]
[1733576458720,0.06642001,4004.2,4004.1,0.999459]
[1733576458887,1.04503748,4004.4,4004.1,0.999459]
[1733576459084,2.22777626,4004.3,4004.1,0.999459]
[1733576459285,0.86455366,4004.2,4004.1,0.999459]
[1733576459487,1.04503748,4004.4,4004.1,1.5204033]
[1733576459785,2.16141893,4004.3,4004.1,1.5204033]
[1733576459985,0.06529668,4004.2,4004.1,1.5204033]
[1733576460181,1.04503748,4004.4,4004.1,1.5204033]
[1733576460490,1.80543748,4004.7,4004.3,2.82579156]
[1733576460691,2.1612432,4004.6,4004.5,1.74803]
[1733576460896,0.86449728,4004.6,4004.5,1.74803]
[1733576461413,2.56169467,4005.0,4004.5,1.74803]
[1733576461414,1.04503748,4004.8,4004.5,0.36456016]
[1733576461595,0.8642224,4004.7,4004.6,1.74797]
[1733576461922,2.16075015,4004.7,4004.6,1.74797]
[1733576462710,1.04503748,4005.0,4004.7,1.74794]
[1733576462937,2.16078845,4004.9,4004.7,1.74794]
[1733576463139,1.04503748,4005.0,4004.7,1.74794]
[1733576463460,0.92910313,4004.9,4004.7,2.06695717]
[1733576463605,0.06481003,4004.9,4004.7,2.06695717]
[1733576464245,0.86445412,4004.8,4004.7,2.06695717]
[1733576464553,0.06481003,4004.9,4004.7,2.06695717]
[1733576464868,0.92854927,4004.8,4004.7,2.06695717]
[1733576465009,0.06405669,4004.8,4004.7,2.82561156]
[1733576465216,1.04503748,4005.2,4004.7,1.07767156]
[1733576465415,0.92848951,4005.1,4004.8,1.74786]
[1733576465636,0.06410786,4005.1,4004.8,1.74786]
[1733576465910,0.06410786,4005.1,4004.9,0.28255316]
[1733576466414,0.06410786,4005.1,4004.9,2.52805]
[1733576467742,0.06410786,4005.1,4004.7,1.07767156]
[1733576467917,0.86415673,4005.0,4004.7,2.82561156]
[1733576468119,1.10914534,4005.1,4004.7,2.82561156]
[1733576468321,0.86416503,4005.0,4004.7,3.22735873]
[1733576468627,0.06410786,4005.0,4004.7,3.22735873]
[1733576468824,2.32052206,4005.4,4004.7,3.22735873]
[1733576468825,1.04503748,4005.1,4004.7,3.22735873]
[1733576469028,0.92811663,4005.0,4004.7,3.22735873]
[1733576469234,1.65761771,4004.9,4004.4,1.74807]
[1733576469517,3.20506117,4004.8,4004.2,1.07767156]
[1733576469711,2.16002369,4004.7,4004.2,1.07767156]
[1733576469933,2.16002369,4004.6,4004.2,1.07767156]
[1733576470253,0.06435941,4004.6,4004.2,1.07767156]
[1733576470462,0.86398095,4004.5,4004.2,1.07767156]
[1733576470634,1.04503748,4004.6,4004.2,2.82583156]
[1733576470836,0.06435941,4004.5,4004.2,2.82583156]
[1733576471160,1.04503748,4004.7,4004.4,1.74807]
[1733576471370,0.86414804,4004.6,4004.2,3.29108062]
[1733576471535,1.04503748,4004.7,4004.2,2.82582156]
[1733576471724,0.8642212,4004.6,4004.2,2.82582156]
[1733576471923,1.04503748,4004.8,4004.2,2.82582156]
[1733576472127,2.16055945,4004.7,4004.2,2.82582156]
[1733576472357,0.86422378,4004.6,4004.2,2.82582156]
[1733576472526,1.04503748,4004.7,4004.2,2.82582156]
[1733576472732,0.86429943,4004.6,4004.2,2.82582156]
[1733576473038,1.04503748,4004.7,4004.2,2.82582156]
[1733576473361,3.20587918,4004.6,4004.2,1.07767156]
[1733576473552,0.86429987,4004.5,4004.2,1.07767156]
[1733576473755,1.04503748,4004.6,4004.2,1.07767156]
[1733576473930,0.86453094,4004.5,4004.2,1.07767156]
[1733576474269,1.04503748,4004.7,4004.2,1.07767156]
[1733576474463,2.16134447,4004.6,4004.2,2.82581156]
[1733576474758,0.86453779,4004.5,4004.2,2.82581156]
[1733576474965,1.04503748,4004.7,4004.2,2.82581156]
[1733576475160,2.16160035,4004.6,4004.2,1.07767156]
[1733576475466,0.86464014,4004.5,4004.2,1.07767156]
[1733576475632,1.04503748,4004.6,4004.2,1.07767156]
[1733576475970,0.86468874,4004.5,4004.3,1.7481]
[1733576476261,1.04503748,4004.7,4004.3,1.7481]
[1733576476477,1.04503748,4004.7,4004.4,2.03063716]
[1733576476478,2.1617319,4004.6,4004.4,2.03063716]
[1733576476668,1.04503748,4004.7,4004.4,2.03063716]
[1733576476873,0.86474774,4004.6,4004.4,2.03063716]
[1733576477031,1.04503748,4004.7,4004.4,2.03063716]
[1733576477227,0.86475999,4004.6,4004.4,2.03063716]
[1733576477427,1.04503748,4004.7,4004.4,2.03063716]
[1733576477729,0.86514697,4004.6,4004.4,2.03063716]
[1733576477971,1.04503748,4004.7,4004.4,2.03063716]
[1733576478178,0.86519025,4004.6,4004.5,1.74802]
[1733576478461,0.92953693,4004.6,4004.5,1.74802]
[1733576479179,0.92953693,4004.6,4004.5,2.82569156]
[1733576479664,0.06434668,4004.6,4004.5,2.82569156]
[1733576479863,0.92966139,4004.6,4004.5,2.82569156]
[1733576480079,0.92966139,4004.6,4004.5,3.13901544]
[1733576480284,0.06434668,4004.6,4004.5,3.13901544]
[1733576480503,1.04503748,4004.8,4004.5,3.13901544]
[1733576480694,0.92966173,4004.7,4004.5,3.13901544]
[1733576480866,0.06434668,4004.7,4004.5,3.13901544]
[1733576481200,1.83863748,4004.9,4004.5,1.39099544]
[1733576481403,2.16331146,4004.8,4004.6,1.74798]
[1733576481566,0.86532458,4004.7,4004.6,1.74798]
[1733576483272,2.16342804,4004.7,4004.6,1.74798]
[1733576483593,3.20846552,4004.7,4004.6,1.74798]
[1733576484296,3.20846552,4004.7,4004.4,1.74807]
[1733576484496,3.20846552,4004.6,4004.4,1.74807]
[1733576484705,0.86532458,4004.5,4004.4,1.74807]
[1733576485199,0.86546954,4004.5,4004.4,1.74807]
[1733576485407,0.86548602,4004.5,4004.4,1.74807]
[1733576486107,0.86552334,4004.5,4004.4,1.74807]
[1733576486404,1.04503748,4004.7,4004.6,1.74798]
[1733576486608,3.2089113,4004.7,4004.6,1.74798]
[1733576486910,2.16387382,4004.7,4004.6,1.74798]
[1733576489370,3.2089113,4004.7,4004.6,1.74798]
[1733576489796,2.16387382,4004.7,4004.5,1.07767156]
[1733576490077,2.1642296,4004.6,4004.5,1.07767156]
[1733576490279,3.20926708,4004.6,4004.5,1.07767156]
[1733576490889,3.20926708,4004.6,4004.5,2.82570156]
[1733576491207,2.1642296,4004.6,4004.5,2.82570156]
[1733576491522,2.16421914,4004.6,4004.5,2.82570156]
[1733576491668,2.16422745,4004.6,4004.5,2.82570156]
[1733576491872,0.86554953,4004.6,4004.5,2.82570156]
[1733576492117,2.16427516,4004.6,4004.5,2.82570156]
[1733576493478,2.22858772,4004.6,4004.5,2.82570156]
[1733576493879,0.92986209,4004.6,4004.5,2.82570156]
[1733576494251,2.22864116,4004.6,4004.5,2.82570156]
[1733576494381,0.92986209,4004.6,4004.5,2.82570156]
[1733576494711,2.22864693,4004.6,4004.5,2.82570156]
[1733576494913,0.92986209,4004.6,4004.5,2.82570156]
[1733576495523,2.22865321,4004.6,4004.5,2.82570156]
[1733576495676,2.22896631,4004.6,4004.5,2.82570156]
[1733576496102,0.93017406,4004.6,4004.5,2.82570156]
[1733576496300,2.22898686,4004.6,4004.5,2.82570156]
[1733576496506,0.93017406,4004.6,4004.5,2.82570156]
[1733576496713,2.2289705,4004.6,4004.5,2.82570156]
[1733576496935,2.2289705,4004.6,4004.5,3.11076877]
[1733576496936,0.93017406,4004.6,4004.5,3.11076877]
[1733576497240,0.06431256,4004.6,4004.5,3.88556877]
[1733576497589,1.04503748,4005.0,4004.9,1.74785]
[1733576497791,3.20944173,4005.0,4004.9,1.74785]
[1733576497999,3.20944173,4005.0,4004.9,2.03040216]
[1733576498303,2.16440425,4005.0,4004.9,2.03040216]
[1733576498513,0.8657617,4005.0,4004.9,2.03040216]
[1733576498714,0.8657617,4005.0,4004.9,2.05536856]
[1733576499025,1.04503748,4005.3,4005.0,0.7751]
[1733576499193,2.61787302,4005.8,4005.3,1.74768]
[1733576499194,1.04503748,4005.4,4005.3,1.74768]
[1733576499533,1.04503748,4005.5,4005.4,2.82531156]
[1733576499736,3.20858304,4005.5,4005.4,2.82531156]
[1733576500293,3.21018092,4005.5,4005.2,1.74772]
[1733576500512,3.21018092,4005.4,4005.1,1.07767156]
[1733576500709,0.86541822,4005.3,4005.2,1.74772]
[1733576501420,1.04663536,4005.5,4005.3,1.74766]
[1733576501625,2.16304505,4005.4,4005.3,1.74766]
[1733576502304,0.86521802,4005.4,4005.3,1.74766]
[1733576502731,2.1629559,4005.4,4005.3,1.74766]
[1733576502954,0.815,4005.3,4005.1,2.82543156]
[1733576503099,0.86521802,4005.2,4005.1,2.82543156]
[1733576504851,2.16308606,4005.2,4005.1,2.82543156]
[1733576505130,0.86521802,4005.2,4005.1,2.82543156]
[1733576505332,0.86523829,4005.2,4005.1,2.82543156]
[1733576505852,2.16313471,4005.2,4005.1,2.82543156]
[1733576506135,0.86523829,4005.2,4005.1,2.82543156]
[1733576506307,0.86523829,4005.2,4005.1,1.74776]
[1733576506922,2.16311601,4005.2,4005.1,1.74776]
[1733576507351,0.86523829,4005.2,4005.1,1.74776]
[1733576507725,0.86524099,4005.2,4005.1,1.74776]
[1733576508615,0.92993725,4005.2,4005.1,1.74776]
[1733576509446,2.22771857,4005.2,4004.8,1.07767156]
[1733576509632,0.06469626,4005.2,4004.8,1.07767156]
[1733576509836,0.06469626,4005.2,4005.0,1.74781]
[1733576510161,1.86163536,4005.3,4005.0,1.74781]
[1733576510162,0.06467068,4005.1,4005.0,1.74781]
[1733576510530,1.86163536,4005.3,4005.0,1.74781]
[1733576510728,1.36243285,4005.2,4005.0,1.74781]
[1733576510940,0.06467068,4005.2,4005.0,1.74781]
[1733576511231,1.86163536,4005.3,4005.0,1.74781]
[1733576511450,0.06467068,4005.1,4005.0,1.74781]
[1733576511616,1.86163536,4005.3,4005.0,1.74781]
[1733576511814,0.06467068,4005.1,4005.0,1.74781]
[1733576512321,1.81163536,4005.3,4005.0,1.74781]
[1733576512553,1.36237966,4005.2,4005.0,1.74781]
[1733576512739,0.06467068,4005.2,4005.0,1.74781]
[1733576512939,1.81163536,4005.3,4004.7,1.74791]
[1733576513171,1.04663536,4005.0,4004.7,1.74791]
[1733576513314,1.29780231,4004.9,4004.5,1.74802]
[1733576513520,1.04663536,4005.0,4004.5,1.74802]
[1733576513753,2.40912921,4004.9,4004.5,1.74802]
[1733576513961,1.11130604,4004.9,4004.6,1.74798]
[1733576514116,1.11130604,4004.9,4004.4,1.07767156]
[1733576514321,1.29783205,4004.8,4004.6,1.74798]
[1733576514551,1.04663536,4004.9,4004.6,1.74798]
[1733576514757,0.06467068,4004.7,4004.6,1.74798]
[1733576515061,0.99663536,4004.9,4004.6,1.74798]
[1733576515278,0.06467068,4004.7,4004.6,1.74798]
[1733576515419,0.99663536,4004.9,4004.6,1.74798]
[1733576515955,1.29782235,4004.8,4004.6,1.74798]
[1733576516136,0.86157068,4004.8,4004.6,1.74798]
[1733576517316,0.86157068,4004.8,4004.4,2.82574156]
[1733576518724,0.81157068,4004.8,4004.4,2.82574156]
[1733576519119,1.29786447,4004.7,4004.4,2.82574156]
[1733576519335,0.06426992,4004.6,4004.5,1.74802]
[1733576519538,0.7469,4004.8,4004.5,1.74802]
[1733576519777,1.36219136,4004.7,4004.6,1.74798]
[1733576519986,1.36218019,4004.7,4004.6,1.74798]
[1733576520641,1.36218019,4004.7,4004.4,1.07767156]
[1733576520841,0.06426992,4004.7,4004.4,2.82574156]
[1733576521075,0.7469,4004.8,4004.4,2.82574156]
[1733576521260,0.06426992,4004.6,4004.4,2.82574156]
[1733576521459,0.7469,4004.8,4004.4,2.82574156]
[1733576521666,0.06426992,4004.5,4004.4,2.85071139]
[1733576521866,1.5702405,4005.0,4004.4,1.6184997]
[1733576522066,0.06426992,4004.5,4004.4,2.82574156]
[1733576522281,1.5702405,4005.0,4004.6,1.74797]
[1733576522445,1.2979859,4004.9,4004.6,1.74797]
[1733576522646,1.2979859,4004.8,4004.6,1.74797]
[1733576522866,1.2979859,4004.7,4004.6,1.74797]
[1733576523402,1.29802766,4004.7,4004.6,1.74797]
[1733576523595,1.36228053,4004.7,4004.6,1.74797]
[1733576524471,1.36230453,4004.7,4004.6,1.74797]
[1733576524677,0.06425287,4004.7,4004.6,2.98534416]
[1733576524967,1.04655549,4004.9,4004.8,1.7479]
[1733576525172,2.34464638,4004.9,4004.8,1.7479]
[1733576525770,1.29809089,4004.9,4004.8,1.7479]
[1733576526549,1.04655549,4005.0,4004.8,1.7479]
[1733576526750,1.29818906,4004.9,4004.8,1.7479]
[1733576526951,1.04655549,4005.0,4004.8,1.7479]
[1733576527152,2.34474954,4004.9,4004.8,1.7479]
[1733576527854,3.21002573,4004.9,4004.8,1.7479]
[1733576528051,3.20968934,4004.9,4004.8,1.7479]
[1733576531992,2.16313385,4004.9,4004.8,1.7479]
[1733576532464,2.16355846,4004.9,4004.8,1.7479]
[1733576533200,2.1638643,4004.9,4004.8,1.7479]
[1733576533400,2.1638643,4004.9,4004.8,1.92269]
[1733576533685,0.86554572,4004.9,4004.8,1.92269]
[1733576535661,0.86553549,4004.9,4004.8,0.17479]
[1733576535866,0.86553549,4004.9,4004.8,1.7479]
[1733576538696,0.9298438,4004.9,4004.8,1.7479]
[1733576538990,0.06430831,4004.9,4004.8,2.5777]
[1733576539295,0.8051,4005.7,4005.2,1.74772]
[1733576539296,1.04655549,4005.3,4005.2,1.74772]
[1733576539511,3.21045407,4005.3,4005.2,1.74772]
[1733576539659,3.27476238,4005.3,4005.2,1.74772]
[1733576540056,3.79844739,4005.3,4004.9,1.74781]
[1733576540255,1.04686274,4005.1,4004.9,1.74781]
[1733576540498,2.16389858,4005.0,4004.9,1.74781]
[1733576541001,2.22820689,4005.0,4004.9,1.74781]
[1733576541361,0.06430831,4005.0,4004.9,1.74781]
[1733576541698,0.8656223,4005.0,4004.9,2.03039816]
[1733576541864,0.92994337,4005.0,4004.9,2.03039816]
[1733576542494,2.22846785,4005.0,4004.9,2.03039816]
[1733576542906,2.22852383,4005.0,4004.9,2.03039816]
[1733576547778,2.22888515,4005.0,4004.9,2.03039816]
[1733576548303,0.9301423,4005.0,4004.9,2.03039816]
[1733576550010,0.9301423,4005.0,4004.9,1.74785]
[1733576550305,0.9301423,4005.0,4004.9,2.82552156]
[1733576551304,0.06432107,4005.0,4004.9,2.82552156]
[1733576551709,1.04686274,4005.2,4005.1,1.74777]
[1733576552007,3.21156014,4005.2,4005.1,1.74777]
[1733576552769,3.21155024,4005.2,4005.1,1.74777]
[1733576553728,3.27587131,4005.2,4005.1,1.74777]
[1733576553887,3.27620283,4005.2,4005.1,1.74777]
[1733576554216,3.27619677,4005.2,4005.1,1.74777]
[1733576554503,2.22900857,4005.2,4005.1,1.74777]
[1733576554808,3.27620557,4005.2,4005.1,1.74777]
[1733576557337,2.22900857,4005.2,4005.1,1.74777]
[1733576557545,2.22900857,4005.2,4005.1,2.03031416]
[1733576557842,2.22905545,4005.2,4005.1,2.03031416]
[1733576558012,0.06432107,4005.2,4005.1,2.03031416]
[1733576558640,0.06424007,4005.2,4005.1,2.03031416]
[1733576559233,1.5702405,4005.7,4005.5,1.74759]
[1733576559437,3.21105537,4005.6,4005.5,1.74759]
[1733576562642,3.21026554,4005.6,4005.5,1.74759]
[1733576563717,2.16343315,4005.6,4005.5,1.74759]
[1733576564231,0.86537326,4005.6,4005.5,1.74759]
[1733576564836,2.16327312,4005.6,4005.5,1.74759]
[1733576565044,0.86537326,4005.6,4005.5,1.74759]
[1733576565517,1.04683239,4005.8,4005.6,1.74751]
[1733576565721,0.86519706,4005.7,4005.6,1.74751]
[1733576567416,0.86514937,4005.7,4005.6,1.74751]
[1733576567621,1.04683239,4005.9,4005.6,1.74751]
[1733576567821,2.1626713,4005.8,4005.6,1.74751]
[1733576568006,0.86506852,4005.7,4005.6,1.74751]
[1733576568606,0.92853859,4005.7,4005.6,1.74751]
[1733576569246,0.06347007,4005.7,4005.6,1.74751]
[1733576569744,0.86502167,4005.7,4005.6,1.74751]
[1733576569954,0.92849174,4005.7,4005.6,1.74751]
[1733576570242,0.92849174,4005.7,4005.3,2.82531156]
[1733576570243,2.22603052,4005.7,4005.3,2.82531156]
[1733576570450,2.16256045,4005.6,4004.6,0.8082]
[1733576570745,2.1626903,4005.5,4005.3,1.74764]
[1733576571045,0.06347007,4005.4,4005.3,1.74764]
[1733576571411,1.87233239,4005.7,4005.3,1.74764]
[1733576571601,0.06364487,4005.4,4005.3,1.74764]
[1733576571803,1.87233239,4005.7,4005.1,1.74777]
[1733576572010,3.27325951,4005.6,4004.9,1.07767156]
[1733576572212,4.0351294,4005.5,4004.9,1.74784]
[1733576572437,1.04683239,4005.3,4004.9,1.74784]
[1733576572636,0.86520468,4005.2,4004.9,1.74784]
[1733576572832,1.04683239,4005.3,4004.9,1.74784]
[1733576573048,0.06373441,4005.1,4004.9,1.74784]
[1733576573354,1.04683239,4005.3,4004.9,1.74784]
[1733576573560,0.06373441,4005.0,4004.9,1.74784]
[1733576573710,1.04683239,4005.3,4004.9,1.74784]
[1733576573915,0.06373441,4005.0,4004.6,1.88587156]
[1733576574249,0.06373441,4004.9,4004.6,2.24926672]
[1733576574412,0.06373441,4004.9,4004.7,1.74794]
[1733576574608,1.04683239,4005.3,4004.7,1.74794]
[1733576574838,0.06373441,4004.8,4004.7,1.74794]
[1733576575081,1.04683239,4005.3,4004.7,1.74794]
[1733576575350,0.06373441,4004.8,4004.7,1.74794]
[1733576575514,1.04683239,4005.3,4004.8,1.74789]
[1733576575715,2.16340972,4005.2,4004.8,1.74789]
[1733576576013,0.86536389,4005.1,4004.8,1.74789]
[1733576576211,1.04683239,4005.3,4004.8,1.74789]
[1733576576438,2.16340707,4005.2,4004.8,1.74789]
[1733576576656,0.86536283,4005.1,4004.8,1.74789]
[1733576576814,1.04683239,4005.4,4004.9,2.82548156]
[1733576577013,1.04683239,4005.4,4005.0,1.7478]
[1733576577014,0.86537913,4005.3,4005.0,1.7478]
[1733576577248,1.04683239,4005.4,4005.0,1.7478]
[1733576577557,2.16345008,4005.3,4005.1,1.74774]
[1733576577729,1.04683239,4005.4,4005.1,1.74774]
[1733576577923,0.86540925,4005.3,4005.1,1.74774]
[1733576578130,1.87233239,4005.5,4005.1,1.74774]
[1733576578424,2.1635339,4005.4,4005.1,1.74774]
[1733576578628,1.04683239,4005.6,4005.3,1.74768]
[1733576578809,0.86541482,4005.5,4005.2,1.07767156]
[1733576579012,1.04683239,4005.6,4005.4,1.74764]
[1733576579257,2.91333148,4006.0,4005.4,1.74764]
[1733576579258,0.86538374,4005.5,4005.4,1.74764]
[1733576579464,1.04683239,4005.8,4005.4,1.74764]
[1733576579648,2.16342288,4005.7,4005.4,1.74764]
[1733576579961,2.3903405,4006.0,4005.4,1.74764]
[1733576579962,1.04683239,4005.9,4005.4,1.74764]
[1733576580258,3.21020909,4005.8,4005.5,2.82526156]
[1733576580434,0.86535068,4005.7,4005.5,2.82526156]
[1733576580774,0.86535068,4005.6,4005.5,2.82526156]
[1733576580923,0.86537,4005.6,4005.5,1.07767156]
[1733576581269,2.16347496,4005.6,4005.5,1.07767156]
[1733576581561,2.16347142,4005.6,4005.5,1.07767156]
[1733576581727,2.16347142,4005.6,4005.2,2.82535156]
[1733576581928,1.04683239,4005.7,4005.2,2.82535156]
[1733576582129,0.86538756,4005.6,4005.2,2.82535156]
[1733576582325,1.04683239,4005.7,4005.2,2.82535156]
[1733576582530,2.16350415,4005.6,4005.2,2.82535156]
[1733576582832,1.04683239,4005.7,4005.2,2.82535156]
[1733576583036,2.16347725,4005.6,4005.2,2.82535156]
[1733576583233,0.86540082,4005.5,4005.2,2.82535156]
[1733576583462,0.06378131,4005.5,4005.2,2.82535156]
[1733576583877,1.04683239,4005.7,4005.2,2.82535156]
[1733576584082,2.16354976,4005.6,4005.2,2.82535156]
[1733576584228,0.8654199,4005.5,4005.2,2.82535156]
[1733576584569,1.04683239,4005.7,4005.2,2.82535156]
[1733576584780,2.16352154,4005.6,4005.2,2.82535156]
[1733576584923,0.86540374,4005.5,4005.2,2.82535156]
[1733576585248,1.04683239,4005.7,4005.2,2.82535156]
[1733576585439,0.06378131,4005.4,4005.2,2.82535156]
[1733576585760,1.04683239,4005.7,4005.2,2.82535156]
[1733576585947,0.06378131,4005.3,4005.2,2.82535156]
[1733576586158,1.04683239,4005.7,4005.2,3.18902672]
[1733576586466,0.86539427,4005.6,4005.2,2.82535156]
[1733576586627,0.86539325,4005.5,4005.2,2.82535156]
[1733576586823,0.06378131,4005.6,4005.2,2.82535156]
[1733576587025,0.86540141,4005.5,4005.2,2.82535156]
[1733576587262,0.06378131,4005.5,4005.2,2.82535156]
[1733576587648,1.04683239,4005.7,4005.2,2.82535156]
[1733576587853,0.06396037,4005.4,4005.2,2.82535156]
[1733576588051,1.04683239,4005.7,4005.2,2.82535156]
[1733576588237,0.06396037,4005.3,4005.2,2.82535156]
[1733576588452,1.04683239,4005.7,4005.2,3.18902672]
[1733576588624,0.06396037,4005.3,4005.2,2.82535156]
[1733576588827,1.04683239,4005.6,4005.2,2.82535156]
[1733576589045,0.06396037,4005.3,4005.2,2.82535156]
[1733576589268,1.04683239,4005.6,4005.2,2.82535156]
[1733576589464,0.06396037,4005.3,4005.2,2.82539156]
[1733576589669,1.04683239,4005.6,4005.2,1.44135072]
[1733576589829,1.04683239,4005.8,4005.4,1.7476]
[1733576590026,0.86540294,4005.7,4005.5,1.74758]
[1733576590230,1.04683239,4005.8,4005.5,1.74758]
[1733576590465,0.86542958,4005.7,4005.5,1.74758]
[1733576590694,1.04683239,4005.8,4005.5,1.74758]
[1733576590867,0.86540716,4005.7,4005.5,1.74758]
[1733576591169,1.04683239,4005.8,4005.5,1.74758]
[1733576591476,2.16358267,4005.7,4005.5,1.74758]
[1733576591645,0.86543276,4005.6,4005.5,1.74758]
[1733576591850,1.04683239,4005.8,4005.5,1.74758]
[1733576592169,2.16359468,4005.7,4005.2,1.07767156]
[1733576592345,2.16359468,4005.7,4005.3,1.74767]
[1733576592346,2.16364851,4005.6,4005.3,1.74767]
[1733576592546,0.86549486,4005.5,4005.3,1.74767]
[1733576592762,1.04683239,4005.7,4005.3,1.74767]
[1733576592961,2.16377763,4005.6,4005.3,1.74767]
[1733576593162,1.04683239,4005.7,4005.3,1.74767]
[1733576593163,0.86551105,4005.5,4005.3,1.74767]
[1733576593465,1.04683239,4005.7,4005.3,1.74767]
[1733576593774,2.1638741,4005.6,4005.3,1.74767]
[1733576593935,0.86554964,4005.5,4005.3,1.74767]
[1733576594141,1.04683239,4005.7,4005.3,1.74767]
[1733576594377,3.21072197,4005.6,4005.3,1.74767]
[1733576594601,2.16388958,4005.5,4005.3,1.74767]
[1733576594896,1.04683239,4005.6,4005.3,1.74767]
[1733576595099,2.16397593,4005.5,4005.3,1.74767]
[1733576595258,1.04683239,4005.6,4005.3,1.74767]
[1733576595463,2.16403153,4005.5,4005.3,1.74767]
[1733576595663,1.04683239,4005.6,4005.3,1.74767]
[1733576595964,2.16406477,4005.5,4005.3,1.74767]
[1733576596189,1.04683239,4005.6,4005.3,1.74767]
[1733576596501,2.16408488,4005.5,4005.3,1.74767]
[1733576596698,1.04683239,4005.6,4005.3,1.74767]
[1733576596857,0.7898,4005.4,4004.7,0.7697]
[1733576597062,0.86571719,4005.3,4004.9,1.74785]
[1733576597284,1.83663239,4005.4,4004.9,1.74785]
[1733576597498,2.16427111,4005.3,4004.9,1.74785]
[1733576597704,0.86570088,4005.2,4004.9,1.74785]
[1733576597861,1.83663239,4005.4,4004.9,1.74785]
[1733576598231,2.1643296,4005.3,4004.9,1.74785]
[1733576598404,0.06416497,4005.3,4004.9,1.74785]
[1733576599403,0.86575241,4005.2,4004.9,1.74785]
[1733576599565,1.83663239,4005.4,4004.9,1.74785]
[1733576599764,2.22862917,4005.3,4004.9,1.74785]
[1733576599961,0.86578568,4005.2,4004.7,1.74793]
[1733576600195,1.83663239,4005.4,4004.7,1.74793]
[1733576600395,1.04683239,4005.2,4004.7,1.74793]
[1733576600566,3.2113572,4005.1,4004.7,1.74793]
[1733576600767,0.92990243,4005.0,4004.7,1.74793]
[1733576600984,0.06409251,4005.0,4004.6,1.07767156]
[1733576601318,1.04683239,4005.1,4004.6,1.07767156]
[1733576601479,0.06409251,4004.9,4004.6,1.07767156]
[1733576601803,0.06403283,4004.8,4004.6,1.07767156]
[1733576602006,1.85053239,4005.0,4004.4,3.63210156]
[1733576602211,0.92985741,4004.9,4004.4,3.63210156]
[1733576602413,0.06403283,4004.9,4004.4,3.63210156]
[1733576602710,0.06403283,4004.9,4004.5,1.74802]
[1733576603267,0.06403283,4004.9,4004.4,1.88407156]
[1733576604282,0.86572662,4004.8,4004.4,1.07767156]
[1733576604489,0.06403283,4004.9,4004.4,1.07767156]
[1733576604701,0.06386657,4004.7,4004.4,1.07767156]
[1733576604907,1.85053239,4005.0,4004.4,1.07767156]
[1733576605093,0.06386657,4004.6,4004.4,1.07767156]
[1733576605411,0.06386657,4004.5,4004.4,1.36024772]
[1733576605569,0.8037,4005.0,4004.4,1.36024772]
[1733576605908,0.92938272,4004.9,4004.4,1.07767156]
[1733576606107,0.06386657,4004.9,4004.4,1.07767156]
[1733576607992,0.06386657,4004.9,4004.0,1.799772]
[1733576608294,3.21064654,4004.8,4004.0,2.87744356]
[1733576608481,2.16381415,4004.7,4004.0,2.87744356]
[1733576608682,0.86539785,4004.6,4004.0,2.87744356]
[1733576608879,0.06366194,4004.7,4004.0,2.87744356]
[1733576609103,0.86539923,4004.6,4004.0,2.87744356]
[1733576609317,0.06366194,4004.6,4004.0,2.87744356]
[1733576609738,1.04683239,4004.8,4004.0,2.87744356]
[1733576609937,0.06366194,4004.5,4004.0,2.87744356]
[1733576610091,0.7651,4004.6,4004.0,0.999472]
[1733576610287,0.06366194,4004.4,4004.0,0.999472]
[1733576610481,0.7651,4004.6,4004.0,0.999472]
[1733576610693,0.06366194,4004.3,4004.0,0.999472]
[1733576610898,0.7651,4004.6,4004.0,0.999472]
[1733576611392,0.06366194,4004.5,4004.0,0.999472]
[1733576612009,0.06366194,4004.5,4004.0,0.949472]
[1733576612332,0.06366194,4004.5,4003.8,1.07767156]
[1733576613284,0.06366194,4004.5,4003.9,0.999468]
[1733576614339,0.06366194,4004.5,4003.1,3.0]
[1733576614340,0.7651,4004.0,4003.0,0.8003]
[1733576614629,3.2714057,4003.9,4003.0,1.799982]
[1733576614937,0.7651,4003.7,4002.7,3.62678156]
[1733576615107,0.7651,4003.7,4002.9,0.99971]
[1733576615495,0.06334637,4003.6,4002.9,0.99971]
[1733576615707,0.06334637,4003.6,4003.0,1.07767156]
[1733576615905,0.06334637,4003.6,4003.5,1.74847]
[1733576616338,0.7651,4004.2,4003.5,1.74847]
[1733576616694,0.0607134,4004.1,4003.5,1.74847]